{"text_format":"3","workbook":"xlsx","n_sheets":1,"sheets":["Tabelle1"],"not_rendered":{"macros":1},"read":"whole","date_system":"1900"}

{"sheet":"Tabelle1","index":0,"n_rows":25,"n_cols":7,"rows_kept":25,"merged":[[10,1,10,3]]}
[]
[null,"Das ist ein Beispieltext "]
[]
[null,{"$f":"Krypto_ROT(B2,5)","v":"Ifx nxy jns Gjnxunjqyjcy "},null,"=Krypto_ROT(B2;5)"]
[null,{"$f":"Krypto_ROT(B2,13)","v":"Qnf vfg rva Orvfcvrygrkg "},null,"=Krypto_ROT(B2;13)"]
[null,{"$f":"Krypto_ROT13(\"Das ist ein Beispieltext\")","v":"Qnf vfg rva Orvfcvrygrkg"},null,"=Krypto_ROT13(\"Das ist ein Beispieltext\")"]
[]
[null,{"$f":"Krypto_ROT(B5,13)","v":"Das ist ein Beispieltext "},null,"=Krypto_ROT(B5;13)"]
[]
[]
[null,{"$f":"Krypto_ROT(\"ein weiterer Test\",15)","v":"txc ltxitgtg Ithi"},null,null,"=Krypto_ROT(\"ein weiterer Test\";15)"]
[]
[null,1,{"$f":"Krypto_ROT($B$11,B13)","v":"uyd muyjuhuh Juij"},null,null,{"$f":"B25+1","v":14},{"$f":"Krypto_ROT($B$11,F13)","v":"hlq zhlwhuhu Whvw"}]
[null,{"$f":"B13+1","v":2},{"$f":"Krypto_ROT($B$11,B14)","v":"vze nvzkvivi Kvjk"},null,null,{"$f":"F13+1","v":15},{"$f":"Krypto_ROT($B$11,F14)","v":"imr aimxiviv Xiwx"}]
[null,{"$f":"B14+1","v":3},{"$f":"Krypto_ROT($B$11,B15)","v":"waf owalwjwj Lwkl"},null,null,{"$f":"F14+1","v":16},{"$f":"Krypto_ROT($B$11,F15)","v":"jns bjnyjwjw Yjxy"}]
[null,4,"xbg pxbmxkxk Mxlm",null,null,{"$f":"F15+1","v":17},{"$f":"Krypto_ROT($B$11,F16)","v":"kot ckozkxkx Zkyz"}]
[null,5,"ych qycnylyl Nymn",null,null,{"$f":"F16+1","v":18},{"$f":"Krypto_ROT($B$11,F17)","v":"lpu dlpalyly Alza"}]
[null,6,"zdi rzdozmzm Ozno",null,null,{"$f":"F17+1","v":19},{"$f":"Krypto_ROT($B$11,F18)","v":"mqv emqbmzmz Bmab"}]
[null,7,"aej saepanan Paop",null,null,{"$f":"F18+1","v":20},{"$f":"Krypto_ROT($B$11,F19)","v":"nrw fnrcnana Cnbc"}]
[null,8,"bfk tbfqbobo Qbpq",null,null,21,"osx gosdobob Docd"]
[null,9,"cgl ucgrcpcp Rcqr",null,null,22,"pty hptepcpc Epde"]
[null,10,"dhm vdhsdqdq Sdrs",null,null,23,"quz iqufqdqd Fqef"]
[null,11,"ein weiterer Test",null,{"$f":"26-B23","v":15},24,"rva jrvgrere Grfg"]
[null,12,"fjo xfjufsfs Uftu",null,null,25,"swb kswhsfsf Hsgh"]
[null,13,"gkp ygkvgtgt Vguv",null,null,26,"txc ltxitgtg Ithi"]